[Event "Titled Tuesday Blitz March 08 Early 2022"]
[White "Aitbayev, Aslan"]
[Black "Le, Tuan Minh"]
[WhiteFideId "13704613"]
[BlackFideId "12401153"]
[WhiteElo "2385"]
[BlackElo "2450"]
[Result "0-1"]
[Round "03"]
[TimeControl "180+1"]
[Date "2022.03.08"]
[WhiteClock "0:00:03"]
[BlackClock "0:00:04"]

1. e4 {[%clk 0:03:00]}  c5 {[%clk 0:02:59]} 2. Nf3 {[%clk 0:03:00]}  Nf6 {[%clk 0:02:59]} 3. e5 {[%clk 0:02:57]}  Nd5 {[%clk 0:03:00]} 4. Nc3 {[%clk 0:02:58]}  e6 {[%clk 0:03:01]} 5. g3 {[%clk 0:02:46]}  Nc6 {[%clk 0:03:00]} 6. Bg2 {[%clk 0:02:46]}  g6 {[%clk 0:03:00]} 7. O-O {[%clk 0:02:37]}  Bg7 {[%clk 0:03:00]} 8. Re1 {[%clk 0:02:37]}  O-O {[%clk 0:02:58]} 9. d3 {[%clk 0:02:20]}  Nxc3 {[%clk 0:02:55]} 10. bxc3 {[%clk 0:02:21]}  d6 {[%clk 0:02:55]} 11. Bf4 {[%clk 0:02:19]}  dxe5 {[%clk 0:02:09]} 12. Nxe5 {[%clk 0:02:17]}  Ne7 {[%clk 0:02:10]} 13. Rb1 {[%clk 0:01:37]}  Nd5 {[%clk 0:02:08]} 14. Bd2 {[%clk 0:01:37]}  Qc7 {[%clk 0:02:06]} 15. Qe2 {[%clk 0:01:36]}  Rb8 {[%clk 0:00:58]} 16. Bxd5 {[%clk 0:01:24]}  exd5 {[%clk 0:00:58]} 17. Bf4 {[%clk 0:01:24]}  g5 {[%clk 0:00:55]} 18. Bxg5 {[%clk 0:00:29]}  f6 {[%clk 0:00:54]} 19. Ng6 {[%clk 0:00:18]}  fxg5 {[%clk 0:00:33]} 20. Nxf8 {[%clk 0:00:16]}  Bxf8 {[%clk 0:00:34]} 21. Qh5 {[%clk 0:00:13]}  Qg7 {[%clk 0:00:25]} 22. d4 {[%clk 0:00:11]}  Bf5 {[%clk 0:00:17]} 23. Re5 {[%clk 0:00:10]}  Bg6 {[%clk 0:00:18]} 24. Qxg5 {[%clk 0:00:10]}  cxd4 {[%clk 0:00:18]} 25. cxd4 {[%clk 0:00:10]}  Bd6 {[%clk 0:00:19]} 26. Rxd5 {[%clk 0:00:09]}  Be7 {[%clk 0:00:20]} 27. Qe5 {[%clk 0:00:09]}  Qxe5 {[%clk 0:00:19]} 28. Rxe5 {[%clk 0:00:10]}  Bf8 {[%clk 0:00:17]} 29. Rb2 {[%clk 0:00:09]}  b6 {[%clk 0:00:17]} 30. c3 {[%clk 0:00:09]}  Rc8 {[%clk 0:00:18]} 31. Re3 {[%clk 0:00:09]}  Ba3 {[%clk 0:00:15]} 32. Rbe2 {[%clk 0:00:09]}  Bc1 {[%clk 0:00:16]} 33. Re7 {[%clk 0:00:09]}  Rxc3 {[%clk 0:00:16]} 34. Rxa7 {[%clk 0:00:09]}  Rc8 {[%clk 0:00:11]} 35. f4 {[%clk 0:00:09]}  Rd8 {[%clk 0:00:08]} 36. Ree7 {[%clk 0:00:08]}  Bb2 {[%clk 0:00:08]} 37. Rg7+ {[%clk 0:00:07]}  Kh8 {[%clk 0:00:08]} 38. Rgd7 {[%clk 0:00:08]}  Bxd4+ {[%clk 0:00:07]} 39. Kg2 {[%clk 0:00:09]}  Be4+ {[%clk 0:00:07]} 40. Kf1 {[%clk 0:00:08]}  Bd3+ {[%clk 0:00:06]} 41. Kg2 {[%clk 0:00:09]}  Be4+ {[%clk 0:00:06]} 42. Kf1 {[%clk 0:00:09]}  Rxd7 {[%clk 0:00:06]} 43. Rxd7 {[%clk 0:00:09]}  Bc5 {[%clk 0:00:07]} 44. Ke2 {[%clk 0:00:09]}  Bf5 {[%clk 0:00:07]} 45. Ra7 {[%clk 0:00:10]}  h5 {[%clk 0:00:05]} 46. Kf3 {[%clk 0:00:10]}  Kg8 {[%clk 0:00:05]} 47. a4 {[%clk 0:00:08]}  Bg1 {[%clk 0:00:04]} 48. Kg2 {[%clk 0:00:08]}  Bd4 {[%clk 0:00:05]} 49. a5 {[%clk 0:00:08]}  bxa5 {[%clk 0:00:04]} 50. Rxa5 {[%clk 0:00:08]}  Bg6 {[%clk 0:00:04]} 51. f5 {[%clk 0:00:07]}  Bf7 {[%clk 0:00:05]} 52. Kf3 {[%clk 0:00:08]}  Kg7 {[%clk 0:00:04]} 53. h3 {[%clk 0:00:08]}  Bc3 {[%clk 0:00:05]} 54. Rc5 {[%clk 0:00:08]}  Bb4 {[%clk 0:00:05]} 55. Rb5 {[%clk 0:00:08]}  Bd6 {[%clk 0:00:04]} 56. g4 {[%clk 0:00:08]}  hxg4+ {[%clk 0:00:05]} 57. hxg4 {[%clk 0:00:09]}  Kf6 {[%clk 0:00:06]} 58. Rb6 {[%clk 0:00:09]}  Ke5 {[%clk 0:00:07]} 59. Kg3 {[%clk 0:00:07]}  Bc5 {[%clk 0:00:06]} 60. Rb5 {[%clk 0:00:07]}  Kd6 {[%clk 0:00:07]} 61. Kf4 {[%clk 0:00:07]}  Ba3 {[%clk 0:00:06]} 62. Rb6+ {[%clk 0:00:07]}  Kc5 {[%clk 0:00:06]} 63. Rb7 {[%clk 0:00:06]}  Bd5 {[%clk 0:00:05]} 64. Rc7+ {[%clk 0:00:06]}  Kd6 {[%clk 0:00:06]} 65. Ra7 {[%clk 0:00:06]}  Bc1+ {[%clk 0:00:06]} 66. Kg3 {[%clk 0:00:07]}  Ke5 {[%clk 0:00:06]} 67. Re7+ {[%clk 0:00:07]}  Kf6 {[%clk 0:00:07]} 68. Rd7 {[%clk 0:00:07]}  Ke5 {[%clk 0:00:06]} 69. Re7+ {[%clk 0:00:07]}  Kd6 {[%clk 0:00:05]} 70. Re1 {[%clk 0:00:06]}  Bb2 {[%clk 0:00:05]} 71. Kf4 {[%clk 0:00:06]}  Bc3 {[%clk 0:00:05]} 72. Re8 {[%clk 0:00:06]}  Bd2+ {[%clk 0:00:05]} 73. Kg3 {[%clk 0:00:06]}  Ba5 {[%clk 0:00:05]} 74. g5 {[%clk 0:00:05]}  Kd7 {[%clk 0:00:05]} 75. Re2 {[%clk 0:00:04]}  Bc4 {[%clk 0:00:05]} 76. Re3 {[%clk 0:00:03]}  Bb6 {[%clk 0:00:04]} 0-1


[Site "https://www.chess.com"]

[Event "Titled Tuesday Blitz March 08 Early 2022"]
[White "Antonio, Jorge Carlos"]
[Black "Kosakowski, Jakub"]
[WhiteFideId "113190"]
[BlackFideId "1185080"]
[WhiteElo "2247"]
[BlackElo "2476"]
[Result "0-1"]
[Round "03"]
[TimeControl "180+1"]
[Date "2022.03.09"]
[WhiteClock "0:01:28"]
[BlackClock "0:01:44"]

1. d4 {[%clk 0:03:00]}  d5 {[%clk 0:02:54]} 2. Nf3 {[%clk 0:03:00]}  Nf6 {[%clk 0:02:53]} 3. Bf4 {[%clk 0:02:58]}  c5 {[%clk 0:02:51]} 4. e3 {[%clk 0:02:58]}  Nc6 {[%clk 0:02:49]} 5. Bd3 {[%clk 0:02:52]}  e6 {[%clk 0:02:25]} 6. c3 {[%clk 0:02:51]}  Bd6 {[%clk 0:02:25]} 7. Ne5 {[%clk 0:02:50]}  Qc7 {[%clk 0:02:24]} 8. Bb5 {[%clk 0:02:45]}  O-O {[%clk 0:02:23]} 9. Bxc6 {[%clk 0:02:42]}  bxc6 {[%clk 0:02:24]} 10. Nd2 {[%clk 0:02:42]}  Rb8 {[%clk 0:02:17]} 11. b3 {[%clk 0:02:41]}  Ba6 {[%clk 0:02:12]} 12. c4 {[%clk 0:02:34]}  cxd4 {[%clk 0:02:08]} 13. exd4 {[%clk 0:02:32]}  c5 {[%clk 0:02:08]} 14. O-O {[%clk 0:02:27]}  cxd4 {[%clk 0:02:08]} 15. Re1 {[%clk 0:02:22]}  Rfd8 {[%clk 0:02:00]} 16. Ndf3 {[%clk 0:02:17]}  dxc4 {[%clk 0:01:59]} 17. Rc1 {[%clk 0:02:05]}  Nd5 {[%clk 0:01:54]} 18. Qxd4 {[%clk 0:02:03]}  f6 {[%clk 0:01:49]} 19. Nd3 {[%clk 0:01:44]}  Nxf4 {[%clk 0:01:45]} 20. Nxf4 {[%clk 0:01:38]}  Bxf4 {[%clk 0:01:46]} 21. Qe4 {[%clk 0:01:32]}  Bxc1 {[%clk 0:01:46]} 22. Qxe6+ {[%clk 0:01:31]}  Kh8 {[%clk 0:01:46]} 23. Rxc1 {[%clk 0:01:28]}  Qd6 {[%clk 0:01:44]} 0-1


[Site "https://www.chess.com"]

[Event "Titled Tuesday Blitz March 08 Early 2022"]
[White "Balaji, Aaravamudhan"]
[Black "Zaksaite, Salomeja"]
[WhiteFideId "436224"]
[BlackFideId "12801496"]
[WhiteElo "2085"]
[BlackElo "1953"]
[Result "1-0"]
[Round "03"]
[TimeControl "180+1"]
[Date "2022.03.09"]
[WhiteClock "0:01:27"]
[BlackClock "0:00:01"]

1. Nf3 {[%clk 0:02:55]}  Nf6 {[%clk 0:02:59]} 2. g3 {[%clk 0:02:56]}  g6 {[%clk 0:02:58]} 3. Bg2 {[%clk 0:02:56]}  Bg7 {[%clk 0:02:59]} 4. O-O {[%clk 0:02:57]}  d5 {[%clk 0:02:59]} 5. d3 {[%clk 0:02:58]}  O-O {[%clk 0:03:00]} 6. Nbd2 {[%clk 0:02:57]}  b6 {[%clk 0:02:55]} 7. e4 {[%clk 0:02:58]}  dxe4 {[%clk 0:02:54]} 8. dxe4 {[%clk 0:02:56]}  Bb7 {[%clk 0:02:55]} 9. e5 {[%clk 0:02:56]}  Nd5 {[%clk 0:02:51]} 10. Re1 {[%clk 0:02:53]}  e6 {[%clk 0:02:50]} 11. a3 {[%clk 0:02:41]}  c5 {[%clk 0:02:49]} 12. c4 {[%clk 0:02:42]}  Ne7 {[%clk 0:02:48]} 13. Qc2 {[%clk 0:02:43]}  Nbc6 {[%clk 0:02:49]} 14. Nb3 {[%clk 0:02:44]}  a5 {[%clk 0:02:46]} 15. Bg5 {[%clk 0:02:43]}  a4 {[%clk 0:02:43]} 16. Nbd2 {[%clk 0:02:43]}  Qc7 {[%clk 0:02:43]} 17. Qc3 {[%clk 0:02:40]}  h6 {[%clk 0:02:38]} 18. Bf6 {[%clk 0:02:33]}  Nf5 {[%clk 0:02:24]} 19. Ne4 {[%clk 0:02:32]}  Ncd4 {[%clk 0:02:22]} 20. Bxg7 {[%clk 0:02:33]}  Kxg7 {[%clk 0:02:13]} 21. Nd6 {[%clk 0:02:33]}  Nxd6 {[%clk 0:01:38]} 22. Nxd4 {[%clk 0:02:26]}  cxd4 {[%clk 0:01:08]} 23. Qxd4 {[%clk 0:02:25]}  Nf5 {[%clk 0:01:00]} 24. Qc3 {[%clk 0:02:24]}  Bxg2 {[%clk 0:01:00]} 25. Kxg2 {[%clk 0:02:25]}  Rac8 {[%clk 0:00:57]} 26. Re4 {[%clk 0:02:24]}  Qc6 {[%clk 0:00:56]} 27. Re1 {[%clk 0:02:23]}  Rfd8 {[%clk 0:00:52]} 28. Kg1 {[%clk 0:02:23]}  Qc5 {[%clk 0:00:28]} 29. g4 {[%clk 0:02:11]}  Nd4 {[%clk 0:00:17]} 30. R1e3 {[%clk 0:02:12]}  Qxc4 {[%clk 0:00:10]} 31. Qe1 {[%clk 0:02:08]}  Qc5 {[%clk 0:00:05]} 32. Rc3 {[%clk 0:01:59]}  Qd5 {[%clk 0:00:05]} 33. Rd3 {[%clk 0:01:51]}  Rc4 {[%clk 0:00:04]} 34. Kf1 {[%clk 0:01:47]}  b5 {[%clk 0:00:04]} 35. Qe3 {[%clk 0:01:47]}  Qc6 {[%clk 0:00:03]} 36. Rexd4 {[%clk 0:01:39]}  Rc1+ {[%clk 0:00:03]} 37. Ke2 {[%clk 0:01:38]}  Qc2+ {[%clk 0:00:02]} 38. Rd2 {[%clk 0:01:38]}  Qb1 {[%clk 0:00:01]} 39. Rxd8 {[%clk 0:01:28]}  Rh1 {[%clk 0:00:01]} 40. Kf3 {[%clk 0:01:29]}  Qg1 {[%clk 0:00:01]} 41. Qf4 {[%clk 0:01:27]} 1-0


[Site "https://www.chess.com"]

[Event "Titled Tuesday Blitz March 08 Early 2022"]
[White "Balint, Vilmos"]
[Black "Shuvalova, Polina"]
[WhiteFideId "718050"]
[BlackFideId "24171760"]
[WhiteElo "2059"]
[BlackElo "2355"]
[Result "0-1"]
[Round "03"]
[TimeControl "180+1"]
[Date "2022.03.09"]
[WhiteClock "0:00:17"]
[BlackClock "0:00:13"]

1. e4 {[%clk 0:03:00]}  c5 {[%clk 0:02:59]} 2. c4 {[%clk 0:02:59]}  Nc6 {[%clk 0:02:58]} 3. Ne2 {[%clk 0:02:58]}  e5 {[%clk 0:02:57]} 4. Nbc3 {[%clk 0:02:58]}  d6 {[%clk 0:02:53]} 5. a3 {[%clk 0:02:59]}  g6 {[%clk 0:02:51]} 6. Rb1 {[%clk 0:02:59]}  Bg7 {[%clk 0:02:46]} 7. b4 {[%clk 0:02:59]}  Nf6 {[%clk 0:02:45]} 8. d3 {[%clk 0:02:58]}  O-O {[%clk 0:02:44]} 9. g3 {[%clk 0:02:58]}  Nd7 {[%clk 0:02:41]} 10. Bg2 {[%clk 0:02:58]}  Re8 {[%clk 0:02:38]} 11. O-O {[%clk 0:02:58]}  Nf8 {[%clk 0:02:37]} 12. Nd5 {[%clk 0:02:56]}  Ne6 {[%clk 0:02:37]} 13. Be3 {[%clk 0:02:50]}  Rb8 {[%clk 0:02:36]} 14. f4 {[%clk 0:02:44]}  exf4 {[%clk 0:02:34]} 15. gxf4 {[%clk 0:02:44]}  Ned4 {[%clk 0:02:29]} 16. Ng3 {[%clk 0:02:32]}  Bd7 {[%clk 0:01:59]} 17. Qd2 {[%clk 0:02:25]}  b5 {[%clk 0:01:51]} 18. f5 {[%clk 0:01:57]}  bxc4 {[%clk 0:01:45]} 19. f6 {[%clk 0:01:52]}  Bh8 {[%clk 0:01:10]} 20. dxc4 {[%clk 0:01:52]}  Ne5 {[%clk 0:01:07]} 21. Ne7+ {[%clk 0:01:22]}  Rxe7 {[%clk 0:01:07]} 22. fxe7 {[%clk 0:01:23]}  Qxe7 {[%clk 0:01:08]} 23. Bxd4 {[%clk 0:01:24]}  cxd4 {[%clk 0:01:06]} 24. Rbc1 {[%clk 0:01:17]}  Ng4 {[%clk 0:00:59]} 25. Kh1 {[%clk 0:01:12]}  Bg7 {[%clk 0:00:59]} 26. Rfe1 {[%clk 0:01:07]}  Re8 {[%clk 0:00:57]} 27. Qa2 {[%clk 0:01:02]}  Qh4 {[%clk 0:00:56]} 28. Nf1 {[%clk 0:01:02]}  Nf2+ {[%clk 0:00:51]} 29. Kg1 {[%clk 0:01:02]}  Nd3 {[%clk 0:00:52]} 30. Qe2 {[%clk 0:00:58]}  Nxc1 {[%clk 0:00:49]} 31. Rxc1 {[%clk 0:00:59]}  Bg4 {[%clk 0:00:42]} 32. Qd3 {[%clk 0:00:58]}  Qg5 {[%clk 0:00:41]} 33. Rc2 {[%clk 0:00:55]}  h5 {[%clk 0:00:41]} 34. c5 {[%clk 0:00:53]}  dxc5 {[%clk 0:00:39]} 35. bxc5 {[%clk 0:00:54]}  h4 {[%clk 0:00:38]} 36. h3 {[%clk 0:00:53]}  Bc8 {[%clk 0:00:31]} 37. c6 {[%clk 0:00:54]}  Be5 {[%clk 0:00:29]} 38. Kh1 {[%clk 0:00:48]}  Re7 {[%clk 0:00:28]} 39. Qb5 {[%clk 0:00:45]}  Kg7 {[%clk 0:00:27]} 40. Rf2 {[%clk 0:00:37]}  Be6 {[%clk 0:00:22]} 41. Qc5 {[%clk 0:00:29]}  Rc7 {[%clk 0:00:21]} 42. Nd2 {[%clk 0:00:21]}  Qg3 {[%clk 0:00:20]} 43. Nf1 {[%clk 0:00:18]}  Qg5 {[%clk 0:00:16]} 44. Nd2 {[%clk 0:00:18]}  Bf6 {[%clk 0:00:15]} 45. Nf3 {[%clk 0:00:19]}  Qxc5 {[%clk 0:00:14]} 46. e5 {[%clk 0:00:17]}  Bxe5 {[%clk 0:00:13]} 0-1


[Site "https://www.chess.com"]

[Event "Titled Tuesday Blitz March 08 Early 2022"]
[White "Bilan, Danila"]
[Black "Dwilewicz, Katarzyna"]
[WhiteFideId "24161918"]
[BlackFideId "1148486"]
[WhiteElo "2164"]
[BlackElo "1907"]
[Result "0-1"]
[Round "03"]
[TimeControl "180+1"]
[Date "2022.03.09"]
[WhiteClock "0:01:36"]
[BlackClock "0:00:03"]

1. d4 {[%clk 0:03:00]}  Nf6 {[%clk 0:02:58]} 2. c4 {[%clk 0:03:00]}  b6 {[%clk 0:02:56]} 3. Nf3 {[%clk 0:03:00]}  Bb7 {[%clk 0:02:56]} 4. e3 {[%clk 0:03:01]}  g6 {[%clk 0:02:54]} 5. b3 {[%clk 0:03:01]}  Bg7 {[%clk 0:02:54]} 6. Bb2 {[%clk 0:03:02]}  O-O {[%clk 0:02:54]} 7. Nbd2 {[%clk 0:03:02]}  d5 {[%clk 0:02:51]} 8. Bd3 {[%clk 0:03:03]}  Nbd7 {[%clk 0:02:45]} 9. O-O {[%clk 0:03:02]}  e6 {[%clk 0:02:41]} 10. Rc1 {[%clk 0:03:01]}  Ne4 {[%clk 0:02:38]} 11. Qc2 {[%clk 0:02:58]}  Nxd2 {[%clk 0:02:29]} 12. Nxd2 {[%clk 0:02:59]}  c5 {[%clk 0:02:21]} 13. Qb1 {[%clk 0:02:47]}  Rc8 {[%clk 0:02:13]} 14. Rfd1 {[%clk 0:02:45]}  Qg5 {[%clk 0:01:59]} 15. cxd5 {[%clk 0:02:38]}  cxd4 {[%clk 0:01:39]} 16. Ne4 {[%clk 0:02:29]}  Qxd5 {[%clk 0:01:36]} 17. Rxc8 {[%clk 0:02:23]}  Rxc8 {[%clk 0:01:34]} 18. exd4 {[%clk 0:02:24]}  f5 {[%clk 0:01:22]} 19. Bc4 {[%clk 0:02:20]}  Rxc4 {[%clk 0:01:18]} 20. bxc4 {[%clk 0:02:21]}  Qxe4 {[%clk 0:01:18]} 21. Qxe4 {[%clk 0:02:21]}  Bxe4 {[%clk 0:01:17]} 22. f3 {[%clk 0:02:21]}  Bb7 {[%clk 0:01:12]} 23. Ba3 {[%clk 0:02:20]}  Kf7 {[%clk 0:01:10]} 24. d5 {[%clk 0:02:20]}  exd5 {[%clk 0:01:01]} 25. cxd5 {[%clk 0:02:21]}  Nc5 {[%clk 0:00:58]} 26. d6 {[%clk 0:02:17]}  Ke8 {[%clk 0:00:51]} 27. Rc1 {[%clk 0:02:14]}  Kd7 {[%clk 0:00:48]} 28. h4 {[%clk 0:01:58]}  h5 {[%clk 0:00:43]} 29. Rd1 {[%clk 0:01:40]}  Be5 {[%clk 0:00:31]} 30. Bc1 {[%clk 0:01:39]}  Bc6 {[%clk 0:00:17]} 31. Bg5 {[%clk 0:01:39]}  a5 {[%clk 0:00:14]} 32. Be7 {[%clk 0:01:38]}  b5 {[%clk 0:00:13]} 33. Re1 {[%clk 0:01:32]}  Bxd6 {[%clk 0:00:10]} 34. Bxd6 {[%clk 0:01:32]}  Kxd6 {[%clk 0:00:10]} 35. Rd1+ {[%clk 0:01:32]}  Bd5 {[%clk 0:00:10]} 36. a3 {[%clk 0:01:32]}  b4 {[%clk 0:00:08]} 37. axb4 {[%clk 0:01:33]}  axb4 {[%clk 0:00:09]} 38. Kf2 {[%clk 0:01:34]}  b3 {[%clk 0:00:09]} 39. Rb1 {[%clk 0:01:30]}  b2 {[%clk 0:00:06]} 40. Ke3 {[%clk 0:01:28]}  Na4 {[%clk 0:00:06]} 41. Kd4 {[%clk 0:01:22]}  Ba2 {[%clk 0:00:06]} 42. Rd1 {[%clk 0:01:21]}  b1=Q {[%clk 0:00:05]} 43. Rxb1 {[%clk 0:01:22]}  Bxb1 {[%clk 0:00:06]} 44. Ke3 {[%clk 0:01:23]}  Nc5 {[%clk 0:00:06]} 45. Kf4 {[%clk 0:01:24]}  Ke7 {[%clk 0:00:06]} 46. g4 {[%clk 0:01:24]}  fxg4 {[%clk 0:00:04]} 47. fxg4 {[%clk 0:01:25]}  Kf6 {[%clk 0:00:05]} 48. gxh5 {[%clk 0:01:22]}  gxh5 {[%clk 0:00:06]} 49. Kg3 {[%clk 0:01:23]}  Kf5 {[%clk 0:00:05]} 50. Kh3 {[%clk 0:01:24]}  Kf4 {[%clk 0:00:05]} 51. Kh2 {[%clk 0:01:24]}  Kg4 {[%clk 0:00:05]} 52. Kg2 {[%clk 0:01:25]}  Kxh4 {[%clk 0:00:06]} 53. Kh2 {[%clk 0:01:26]}  Ne6 {[%clk 0:00:05]} 54. Kg2 {[%clk 0:01:27]}  Be4+ {[%clk 0:00:05]} 55. Kh2 {[%clk 0:01:28]}  Kg4 {[%clk 0:00:05]} 56. Kg1 {[%clk 0:01:28]}  Kg3 {[%clk 0:00:05]} 57. Kf1 {[%clk 0:01:27]}  h4 {[%clk 0:00:05]} 58. Ke2 {[%clk 0:01:28]}  h3 {[%clk 0:00:05]} 59. Ke3 {[%clk 0:01:29]}  h2 {[%clk 0:00:05]} 60. Kxe4 {[%clk 0:01:30]}  h1=Q+ {[%clk 0:00:06]} 61. Ke5 {[%clk 0:01:30]}  Qe1+ {[%clk 0:00:05]} 62. Kf6 {[%clk 0:01:31]}  Nc5 {[%clk 0:00:05]} 63. Kf7 {[%clk 0:01:31]}  Kf4 {[%clk 0:00:05]} 64. Kf6 {[%clk 0:01:32]}  Qe6+ {[%clk 0:00:04]} 65. Kg7 {[%clk 0:01:33]}  Kg5 {[%clk 0:00:04]} 66. Kf8 {[%clk 0:01:33]}  Nd7+ {[%clk 0:00:03]} 67. Kg7 {[%clk 0:01:34]}  Qe7+ {[%clk 0:00:03]} 68. Kg8 {[%clk 0:01:35]}  Nf6+ {[%clk 0:00:03]} 69. Kh8 {[%clk 0:01:36]}  Qh7# {[%clk 0:00:03]} 0-1


[Site "https://www.chess.com"]

[Event "Titled Tuesday Blitz March 08 Early 2022"]
[White "Bortnyk, Olexandr"]
[Black "Blohberger, Felix"]
[WhiteFideId "14120828"]
[BlackFideId "1632051"]
[WhiteElo "2723"]
[BlackElo "2474"]
[Result "1-0"]
[Round "03"]
[TimeControl "180+1"]
[Date "2022.03.08"]
[WhiteClock "0:00:09"]
[BlackClock "0:00:05"]

1. e4 {[%clk 0:02:38]}  c5 {[%clk 0:02:59]} 2. c3 {[%clk 0:02:38]}  Nf6 {[%clk 0:02:58]} 3. e5 {[%clk 0:02:38]}  Nd5 {[%clk 0:02:59]} 4. d4 {[%clk 0:02:39]}  cxd4 {[%clk 0:02:57]} 5. Nf3 {[%clk 0:02:40]}  e6 {[%clk 0:02:54]} 6. cxd4 {[%clk 0:02:40]}  d6 {[%clk 0:02:53]} 7. Bc4 {[%clk 0:02:40]}  Be7 {[%clk 0:02:52]} 8. O-O {[%clk 0:02:39]}  O-O {[%clk 0:02:52]} 9. Qe2 {[%clk 0:02:36]}  b6 {[%clk 0:02:52]} 10. Bd2 {[%clk 0:02:28]}  Bb7 {[%clk 0:02:51]} 11. Nc3 {[%clk 0:02:28]}  Nxc3 {[%clk 0:02:33]} 12. Bxc3 {[%clk 0:02:29]}  Nd7 {[%clk 0:02:23]} 13. Rfd1 {[%clk 0:02:27]}  Qc7 {[%clk 0:02:20]} 14. Rac1 {[%clk 0:02:25]}  Bxf3 {[%clk 0:02:20]} 15. gxf3 {[%clk 0:02:23]}  d5 {[%clk 0:02:20]} 16. Bb5 {[%clk 0:02:13]}  Qd8 {[%clk 0:02:13]} 17. Bd2 {[%clk 0:02:07]}  a6 {[%clk 0:02:05]} 18. Bxa6 {[%clk 0:02:00]}  Nb8 {[%clk 0:02:06]} 19. Rc8 {[%clk 0:01:53]}  Qd7 {[%clk 0:01:59]} 20. Rxf8+ {[%clk 0:01:54]}  Bxf8 {[%clk 0:01:59]} 21. Bb5 {[%clk 0:01:54]}  Qb7 {[%clk 0:01:50]} 22. a3 {[%clk 0:01:51]}  Nc6 {[%clk 0:01:50]} 23. Bc3 {[%clk 0:01:45]}  Na7 {[%clk 0:01:48]} 24. Bd3 {[%clk 0:01:45]}  b5 {[%clk 0:01:48]} 25. Qc2 {[%clk 0:01:34]}  g6 {[%clk 0:01:46]} 26. Qb3 {[%clk 0:01:31]}  Rb8 {[%clk 0:01:26]} 27. Bd2 {[%clk 0:00:53]}  Nc6 {[%clk 0:01:18]} 28. Be3 {[%clk 0:00:54]}  Na5 {[%clk 0:01:17]} 29. Qc2 {[%clk 0:00:54]}  Nc4 {[%clk 0:01:13]} 30. Bg5 {[%clk 0:00:50]}  Rc8 {[%clk 0:01:08]} 31. Qb3 {[%clk 0:00:45]}  Qb6 {[%clk 0:01:02]} 32. Bf1 {[%clk 0:00:41]}  Qc6 {[%clk 0:00:51]} 33. Rc1 {[%clk 0:00:39]}  Qb6 {[%clk 0:00:47]} 34. Be3 {[%clk 0:00:33]}  Rb8 {[%clk 0:00:44]} 35. Rc2 {[%clk 0:00:30]}  Na5 {[%clk 0:00:40]} 36. Qc3 {[%clk 0:00:28]}  b4 {[%clk 0:00:40]} 37. axb4 {[%clk 0:00:28]}  Bxb4 {[%clk 0:00:36]} 38. Qc8+ {[%clk 0:00:26]}  Rxc8 {[%clk 0:00:28]} 39. Rxc8+ {[%clk 0:00:27]}  Kg7 {[%clk 0:00:28]} 40. Bg5 {[%clk 0:00:24]}  Nc6 {[%clk 0:00:16]} 41. Bf6+ {[%clk 0:00:17]}  Kh6 {[%clk 0:00:16]} 42. f4 {[%clk 0:00:18]}  Be7 {[%clk 0:00:13]} 43. Rxc6 {[%clk 0:00:16]}  Qxc6 {[%clk 0:00:12]} 44. Bxe7 {[%clk 0:00:17]}  Qb6 {[%clk 0:00:11]} 45. b4 {[%clk 0:00:09]}  Qxd4 {[%clk 0:00:10]} 46. Bc5 {[%clk 0:00:09]}  Qxf4 {[%clk 0:00:10]} 47. Be3 {[%clk 0:00:10]}  Kg5 {[%clk 0:00:05]} 48. b5 {[%clk 0:00:09]} 1-0


[Site "https://www.chess.com"]

[Event "Titled Tuesday Blitz March 08 Early 2022"]
[White "Butti, Enrique"]
[Black "Yang, Kaiqi"]
[WhiteFideId "3700470"]
[BlackFideId "8604398"]
[WhiteElo "2080"]
[BlackElo "2373"]
[Result "0-1"]
[Round "03"]
[TimeControl "180+1"]
[Date "2022.03.09"]
[WhiteClock "0:00:32"]
[BlackClock "0:00:45"]

1. d4 {[%clk 0:02:56]}  g6 {[%clk 0:02:59]} 2. e4 {[%clk 0:02:52]}  Bg7 {[%clk 0:02:59]} 3. c3 {[%clk 0:02:52]}  d6 {[%clk 0:02:58]} 4. f4 {[%clk 0:02:51]}  b6 {[%clk 0:02:56]} 5. Nf3 {[%clk 0:02:50]}  Bb7 {[%clk 0:02:55]} 6. Bd3 {[%clk 0:02:48]}  Nd7 {[%clk 0:02:54]} 7. e5 {[%clk 0:02:47]}  e6 {[%clk 0:02:51]} 8. O-O {[%clk 0:02:42]}  Ne7 {[%clk 0:02:49]} 9. Qe1 {[%clk 0:02:36]}  h6 {[%clk 0:02:44]} 10. b3 {[%clk 0:02:33]}  c5 {[%clk 0:02:16]} 11. exd6 {[%clk 0:02:30]}  Nc8 {[%clk 0:02:10]} 12. Ne5 {[%clk 0:02:20]}  O-O {[%clk 0:01:58]} 13. Bb5 {[%clk 0:02:03]}  Nf6 {[%clk 0:01:51]} 14. dxc5 {[%clk 0:01:39]}  bxc5 {[%clk 0:01:51]} 15. Ba3 {[%clk 0:01:34]}  Nxd6 {[%clk 0:01:48]} 16. Bd3 {[%clk 0:01:27]}  Qb6 {[%clk 0:01:27]} 17. c4 {[%clk 0:01:15]}  Nf5 {[%clk 0:01:02]} 18. Bxf5 {[%clk 0:01:04]}  exf5 {[%clk 0:01:02]} 19. Nc3 {[%clk 0:00:51]}  Ne4 {[%clk 0:01:02]} 20. Nxe4 {[%clk 0:00:50]}  Bxe4 {[%clk 0:01:02]} 21. Qe3 {[%clk 0:00:49]}  Rfc8 {[%clk 0:00:54]} 22. Rad1 {[%clk 0:00:37]}  Qa5 {[%clk 0:00:49]} 23. Bb2 {[%clk 0:00:33]}  Qxa2 {[%clk 0:00:48]} 24. Ba1 {[%clk 0:00:32]}  Qxg2# {[%clk 0:00:45]} 0-1


[Site "https://www.chess.com"]